[Event "Early-Titled-Tuesday-Blitz-March-19-2024"]
[Site "Chess.com"]
[Date "2024.03.19"]
[Round "6"]
[White "Laico"]
[Black "aljado"]
[Result "0-1"]
[WhiteElo "2414"]
[BlackElo "2128"]
[TimeControl "180+1"]
[EndTime "9:05:01 PDT"]
[Termination "aljado won by checkmate"]

1. e4 {[%clk 0:03:00.9]} 1... c5 {[%clk 0:02:59.8]} 2. Nc3 {[%clk 0:03:00.6]}
2... e6 {[%clk 0:02:59.3]} 3. f4 {[%clk 0:03:01.2]} 3... d5 {[%clk 0:02:56.5]}
4. e5 {[%clk 0:03:00.3]} 4... Nc6 {[%clk 0:02:55.3]} 5. Nf3 {[%clk 0:03:00.7]}
5... d4 {[%clk 0:02:54.9]} 6. Ne4 {[%clk 0:03:00.3]} 6... Nh6 {[%clk 0:02:53.9]}
7. Bb5 {[%clk 0:02:59.6]} 7... Nf5 {[%clk 0:02:51.2]} 8. Bxc6+ {[%clk
0:02:59.1]} 8... bxc6 {[%clk 0:02:50.6]} 9. O-O {[%clk 0:02:59.7]} 9... h5
{[%clk 0:02:45.7]} 10. b3 {[%clk 0:02:56.9]} 10... c4 {[%clk 0:02:41.7]} 11.
bxc4 {[%clk 0:02:56.2]} 11... d3 {[%clk 0:02:42]} 12. Bb2 {[%clk 0:02:48]} 12...
Qb6+ {[%clk 0:02:38.9]} 13. Kh1 {[%clk 0:02:43.7]} 13... Qxb2 {[%clk 0:02:38.2]}
14. cxd3 {[%clk 0:02:44.2]} 14... Be7 {[%clk 0:02:27.3]} 15. Qe2 {[%clk
0:02:41]} 15... Qa3 {[%clk 0:02:23.9]} 16. d4 {[%clk 0:02:35.8]} 16... Ba6
{[%clk 0:02:15.9]} 17. d3 {[%clk 0:02:30]} 17... Rd8 {[%clk 0:02:14.2]} 18. Nd6+
{[%clk 0:01:47.5]} 18... Bxd6 {[%clk 0:02:04.4]} 19. exd6 {[%clk 0:01:48.4]}
19... Qxd6 {[%clk 0:02:00.6]} 20. Qe4 {[%clk 0:01:27.9]} 20... h4 {[%clk
0:01:45.6]} 21. Rfe1 {[%clk 0:01:17.3]} 21... Kf8 {[%clk 0:01:43.6]} 22. Ne5
{[%clk 0:00:53]} 22... Qxd4 {[%clk 0:01:25.8]} 23. Nxc6 {[%clk 0:00:51.9]} 23...
Ng3+ {[%clk 0:01:21.1]} 24. hxg3 {[%clk 0:00:34.9]} 24... hxg3+ {[%clk
0:01:20.2]} 25. Qh7 {[%clk 0:00:35.8]} 25... Rxh7# {[%clk 0:01:19]} 0-1

[Event "Early-Titled-Tuesday-Blitz-March-19-2024"]
[Site "Chess.com"]
[Date "2024.03.19"]
[Round "6"]
[White "akanga001"]
[Black "ahmedkandiliii"]
[Result "0-1"]
[WhiteElo "2038"]
[BlackElo "2500"]
[TimeControl "180+1"]
[EndTime "9:05:03 PDT"]
[Termination "ahmedkandiliii won by resignation"]

1. d4 {[%clk 0:02:53]} 1... b6 {[%clk 0:03:00.9]} 2. Bf4 {[%clk 0:02:43.9]} 2...
Bb7 {[%clk 0:03:01.8]} 3. Nf3 {[%clk 0:02:44.1]} 3... g6 {[%clk 0:03:00.2]} 4.
e3 {[%clk 0:02:43.9]} 4... Bg7 {[%clk 0:03:00.8]} 5. h3 {[%clk 0:02:43.7]} 5...
Nf6 {[%clk 0:03:00.5]} 6. c3 {[%clk 0:02:44]} 6... O-O {[%clk 0:03:00.8]} 7.
Nbd2 {[%clk 0:02:44]} 7... c5 {[%clk 0:03:00.3]} 8. Be2 {[%clk 0:02:40.2]} 8...
d6 {[%clk 0:03:00.5]} 9. O-O {[%clk 0:02:38.8]} 9... Nbd7 {[%clk 0:03:01.1]} 10.
Bh2 {[%clk 0:02:35.2]} 10... Ne4 {[%clk 0:03:00.5]} 11. Nxe4 {[%clk 0:02:33.4]}
11... Bxe4 {[%clk 0:03:01.4]} 12. Bd3 {[%clk 0:02:34.1]} 12... Bb7 {[%clk
0:02:59.1]} 13. Qe2 {[%clk 0:02:33.6]} 13... Rc8 {[%clk 0:02:59.4]} 14. Ba6
{[%clk 0:02:33.4]} 14... Qc7 {[%clk 0:02:59.5]} 15. Bxb7 {[%clk 0:02:31.5]}
15... Qxb7 {[%clk 0:03:00.4]} 16. a4 {[%clk 0:02:27.9]} 16... a6 {[%clk
0:02:58.8]} 17. Rfe1 {[%clk 0:02:10.3]} 17... Rc7 {[%clk 0:02:53.8]} 18. dxc5
{[%clk 0:01:58.3]} 18... bxc5 {[%clk 0:02:47.5]} 19. e4 {[%clk 0:01:50.8]} 19...
Rb8 {[%clk 0:02:46.8]} 20. Ra2 {[%clk 0:01:43.8]} 20... Qb3 {[%clk 0:02:45.4]}
21. Rea1 {[%clk 0:01:43.5]} 21... c4 {[%clk 0:02:43]} 22. e5 {[%clk 0:01:42.8]}
22... dxe5 {[%clk 0:02:25.5]} 23. Nxe5 {[%clk 0:01:41.5]} 23... Nxe5 {[%clk
0:02:24.1]} 24. Bxe5 {[%clk 0:01:41]} 24... Bxe5 {[%clk 0:02:24.2]} 25. Qxe5
{[%clk 0:01:41]} 25... Rbb7 {[%clk 0:02:18.8]} 26. a5 {[%clk 0:01:33.9]} 26...
Rd7 {[%clk 0:02:18]} 27. Kh2 {[%clk 0:01:31.6]} 27... Rd2 {[%clk 0:02:13.3]} 28.
Qe3 {[%clk 0:01:27.1]} 28... Rbd7 {[%clk 0:02:06]} 29. Ra4 {[%clk 0:00:47.9]}
29... R7d3 {[%clk 0:01:55.1]} 30. Qxe7 {[%clk 0:00:41.3]} 30... Qb8+ {[%clk
0:01:54.1]} 0-1

[Event "Early-Titled-Tuesday-Blitz-March-19-2024"]
[Site "Chess.com"]
[Date "2024.03.19"]
[Round "6"]
[White "alexrustemov"]
[Black "NelsonLinda"]
[Result "1-0"]
[WhiteElo "2875"]
[BlackElo "2659"]
[TimeControl "180+1"]
[EndTime "9:05:05 PDT"]
[Termination "alexrustemov won by resignation"]

1. d4 {[%clk 0:03:00.9]} 1... Nf6 {[%clk 0:02:50.7]} 2. c4 {[%clk 0:03:01.2]}
2... g6 {[%clk 0:02:50.7]} 3. Nf3 {[%clk 0:03:01.5]} 3... Bg7 {[%clk 0:02:51.2]}
4. g3 {[%clk 0:03:02.1]} 4... O-O {[%clk 0:02:51]} 5. Bg2 {[%clk 0:03:02.5]}
5... d6 {[%clk 0:02:51.5]} 6. Nc3 {[%clk 0:03:02.6]} 6... Nc6 {[%clk 0:02:52]}
7. h3 {[%clk 0:03:00]} 7... e5 {[%clk 0:02:50.8]} 8. Be3 {[%clk 0:02:59.8]} 8...
Nd7 {[%clk 0:02:42.1]} 9. Qd2 {[%clk 0:02:55.4]} 9... Re8 {[%clk 0:02:34.2]} 10.
dxe5 {[%clk 0:02:47.6]} 10... Ndxe5 {[%clk 0:02:00.1]} 11. b3 {[%clk 0:02:42.3]}
11... Nxf3+ {[%clk 0:01:58]} 12. Bxf3 {[%clk 0:02:29.4]} 12... Nb4 {[%clk
0:01:24.7]} 13. Bg2 {[%clk 0:02:21.7]} 13... d5 {[%clk 0:01:04.5]} 14. cxd5
{[%clk 0:02:07.8]} 14... Nxd5 {[%clk 0:00:28.8]} 15. Bxd5 {[%clk 0:02:06.7]}
15... Bxc3 {[%clk 0:00:24.9]} 16. Bxf7+ {[%clk 0:02:06.2]} 16... Kxf7 {[%clk
0:00:23.3]} 17. Qxc3 {[%clk 0:02:06.7]} 17... c6 {[%clk 0:00:19.8]} 18. Rd1
{[%clk 0:02:03.3]} 18... Qf6 {[%clk 0:00:19.3]} 19. Rd4 {[%clk 0:01:43.4]} 19...
Bf5 {[%clk 0:00:17.6]} 20. g4 {[%clk 0:01:35.5]} 20... Be6 {[%clk 0:00:17.7]}
21. Rf4 {[%clk 0:01:33.8]} 21... Bf5 {[%clk 0:00:13.2]} 22. Qxf6+ {[%clk
0:01:33]} 1-0

[Event "Early-Titled-Tuesday-Blitz-March-19-2024"]
[Site "Chess.com"]
[Date "2024.03.19"]
[Round "6"]
[White "yaguigor"]
[Black "SamCopeland"]
[Result "1-0"]
[WhiteElo "2564"]
[BlackElo "2360"]
[TimeControl "180+1"]
[EndTime "9:05:08 PDT"]
[Termination "yaguigor won by resignation"]

1. d4 {[%clk 0:03:00.9]} 1... f5 {[%clk 0:02:56]} 2. c4 {[%clk 0:02:59.8]} 2...
Nf6 {[%clk 0:02:54.7]} 3. Nc3 {[%clk 0:02:59.2]} 3... g6 {[%clk 0:02:50.8]} 4.
h4 {[%clk 0:02:58.6]} 4... d6 {[%clk 0:02:48]} 5. h5 {[%clk 0:02:58.3]} 5...
Nxh5 {[%clk 0:02:47.1]} 6. e4 {[%clk 0:02:57.9]} 6... Ng7 {[%clk 0:02:33.5]} 7.
Nf3 {[%clk 0:02:45.7]} 7... Nc6 {[%clk 0:02:20]} 8. Bh6 {[%clk 0:02:17.9]} 8...
fxe4 {[%clk 0:02:06.8]} 9. Nxe4 {[%clk 0:02:16.3]} 9... Bf5 {[%clk 0:02:05.9]}
10. Neg5 {[%clk 0:02:13.4]} 10... Qd7 {[%clk 0:02:03]} 11. d5 {[%clk 0:02:10.2]}
11... Nb4 {[%clk 0:01:49.8]} 12. Nd4 {[%clk 0:02:08.3]} 12... e5 {[%clk
0:01:23]} 13. Bxg7 {[%clk 0:01:49.8]} 13... Bxg7 {[%clk 0:01:10.2]} 14. Nxf5
{[%clk 0:01:46.6]} 14... Qxf5 {[%clk 0:00:44.4]} 15. Ne6 {[%clk 0:01:43.3]}
15... Nc2+ {[%clk 0:00:37.9]} 16. Kd2 {[%clk 0:01:42.2]} 16... Qxf2+ {[%clk
0:00:22.1]} 17. Be2 {[%clk 0:01:40.9]} 17... Ne3 {[%clk 0:00:16.5]} 18. Qa4+
{[%clk 0:01:26.1]} 18... Kf7 {[%clk 0:00:15.5]} 19. Qd7+ {[%clk 0:01:24.8]}
19... Kf6 {[%clk 0:00:12.7]} 20. Qxg7+ {[%clk 0:01:23.7]} 1-0

[Event "Early-Titled-Tuesday-Blitz-March-19-2024"]
[Site "Chess.com"]
[Date "2024.03.19"]
[Round "6"]
[White "AwareIdea"]
[Black "igorknyazev"]
[Result "1-0"]
[WhiteElo "2516"]
[BlackElo "2236"]
[TimeControl "180+1"]
[EndTime "9:05:11 PDT"]
[Termination "AwareIdea won by resignation"]

1. d4 {[%clk 0:03:00.9]} 1... Nf6 {[%clk 0:02:59.4]} 2. Bf4 {[%clk 0:03:00.4]}
2... c5 {[%clk 0:02:58.1]} 3. e3 {[%clk 0:03:00.9]} 3... e6 {[%clk 0:02:57.4]}
4. Nc3 {[%clk 0:02:59.4]} 4... d5 {[%clk 0:02:57.3]} 5. Nb5 {[%clk 0:02:59.1]}
5... Na6 {[%clk 0:02:55.8]} 6. a4 {[%clk 0:02:59.6]} 6... Be7 {[%clk 0:02:50.9]}
7. Nf3 {[%clk 0:02:57.6]} 7... O-O {[%clk 0:02:50.5]} 8. c3 {[%clk 0:02:56.1]}
8... Nh5 {[%clk 0:02:45.7]} 9. Be5 {[%clk 0:02:55.6]} 9... f6 {[%clk 0:02:42.3]}
10. Bg3 {[%clk 0:02:55.3]} 10... Nxg3 {[%clk 0:02:41.7]} 11. hxg3 {[%clk
0:02:56.2]} 11... cxd4 {[%clk 0:02:39.8]} 12. exd4 {[%clk 0:02:56.2]} 12... Nc7
{[%clk 0:02:26.6]} 13. Bd3 {[%clk 0:02:54.7]} 13... g6 {[%clk 0:02:18.9]} 14.
Qd2 {[%clk 0:02:53.7]} 14... Rf7 {[%clk 0:02:05.8]} 15. Qh6 {[%clk 0:02:52.6]}
15... Bf8 {[%clk 0:02:03.7]} 16. Qh4 {[%clk 0:02:50.5]} 16... Nxb5 {[%clk
0:01:52.8]} 17. Bxg6 {[%clk 0:02:39]} 17... Qe7 {[%clk 0:01:29.1]} 18. Bxf7+
{[%clk 0:02:36.6]} 18... Qxf7 {[%clk 0:01:29.1]} 19. axb5 {[%clk 0:02:36]} 19...
Bd7 {[%clk 0:01:29]} 20. b6 {[%clk 0:02:33.7]} 20... a6 {[%clk 0:01:26.9]} 21.
g4 {[%clk 0:02:29]} 21... e5 {[%clk 0:01:08.5]} 22. dxe5 {[%clk 0:02:26.1]}
22... Re8 {[%clk 0:01:02.9]} 23. Kf1 {[%clk 0:02:11]} 23... fxe5 {[%clk
0:00:57.8]} 24. Ng5 {[%clk 0:02:10.2]} 24... Qg6 {[%clk 0:00:54.2]} 25. Qxh7+
{[%clk 0:02:07.1]} 25... Qxh7 {[%clk 0:00:52.6]} 26. Nxh7 {[%clk 0:02:08]} 26...
Bg7 {[%clk 0:00:30.1]} 27. g5 {[%clk 0:02:07.8]} 27... Re6 {[%clk 0:00:27.9]}
28. Nf6+ {[%clk 0:02:07.1]} 28... Bxf6 {[%clk 0:00:27.8]} 29. gxf6 {[%clk
0:02:08]} 29... Rxb6 {[%clk 0:00:26.1]} 30. b4 {[%clk 0:02:06.6]} 30... Rxf6
{[%clk 0:00:25.9]} 31. Rh5 {[%clk 0:02:05.9]} 31... Re6 {[%clk 0:00:21.6]} 32.
Re1 {[%clk 0:02:04.7]} 32... Bb5+ {[%clk 0:00:20.8]} 33. Kg1 {[%clk 0:02:04.8]}
33... e4 {[%clk 0:00:21.1]} 34. Rxd5 {[%clk 0:02:04.5]} 34... Bc4 {[%clk
0:00:19.3]} 35. Rd4 {[%clk 0:02:04.5]} 35... b5 {[%clk 0:00:18.6]} 36. Rdxe4
{[%clk 0:02:04.3]} 36... Rxe4 {[%clk 0:00:18.5]} 37. Rxe4 {[%clk 0:02:05.2]}
37... Kf7 {[%clk 0:00:18.9]} 38. f4 {[%clk 0:02:05.4]} 38... Bd3 {[%clk
0:00:18.9]} 39. Re5 {[%clk 0:02:05.6]} 1-0

[Event "Early-Titled-Tuesday-Blitz-March-19-2024"]
[Site "Chess.com"]
[Date "2024.03.19"]
[Round "6"]
[White "ViIIagra"]
[Black "Rurep26"]
[Result "1-0"]
[WhiteElo "2925"]
[BlackElo "2725"]
[TimeControl "180+1"]
[EndTime "9:05:21 PDT"]
[Termination "ViIIagra won by resignation"]

1. d4 {[%clk 0:03:00.9]} 1... e6 {[%clk 0:02:56.6]} 2. c3 {[%clk 0:02:58.4]}
2... Nf6 {[%clk 0:02:55.9]} 3. Nd2 {[%clk 0:02:53.6]} 3... d5 {[%clk 0:02:55.1]}
4. e3 {[%clk 0:02:54]} 4... Bd6 {[%clk 0:02:51.8]} 5. f4 {[%clk 0:02:53.9]} 5...
O-O {[%clk 0:02:50.6]} 6. Bd3 {[%clk 0:02:54.5]} 6... b6 {[%clk 0:02:49.9]} 7.
Ngf3 {[%clk 0:02:47.8]} 7... Ba6 {[%clk 0:02:50]} 8. Bb1 {[%clk 0:02:45.2]} 8...
c5 {[%clk 0:02:49.2]} 9. Ne5 {[%clk 0:02:44.8]} 9... Nfd7 {[%clk 0:02:43.7]} 10.
Qg4 {[%clk 0:02:33.9]} 10... f5 {[%clk 0:02:42.2]} 11. Qh3 {[%clk 0:02:33.8]}
11... Bxe5 {[%clk 0:02:39.1]} 12. fxe5 {[%clk 0:02:34.7]} 12... Nc6 {[%clk
0:02:35.6]} 13. Nf3 {[%clk 0:02:34.5]} 13... b5 {[%clk 0:02:33.3]} 14. g4 {[%clk
0:02:32.9]} 14... Ne7 {[%clk 0:02:30]} 15. Rg1 {[%clk 0:02:22.9]} 15... Qb6
{[%clk 0:02:11.4]} 16. b4 {[%clk 0:02:12.2]} 16... cxb4 {[%clk 0:02:09.8]} 17.
cxb4 {[%clk 0:02:13.1]} 17... Rac8 {[%clk 0:02:09.2]} 18. Bd2 {[%clk 0:02:11.6]}
18... Rc6 {[%clk 0:02:03.8]} 19. Bd3 {[%clk 0:02:11.2]} 19... Qc7 {[%clk
0:02:02]} 20. Ke2 {[%clk 0:02:10.5]} 20... Nb6 {[%clk 0:01:57.9]} 21. Ng5 {[%clk
0:02:06.5]} 21... h6 {[%clk 0:01:57]} 22. Nxe6 {[%clk 0:02:06.3]} 22... Rxe6
{[%clk 0:01:56.5]} 23. gxf5 {[%clk 0:02:06.8]} 23... Nxf5 {[%clk 0:01:35.9]} 24.
Bxf5 {[%clk 0:02:01.7]} 24... Qc4+ {[%clk 0:01:22.1]} 25. Bd3 {[%clk 0:02:01.3]}
25... Qc6 {[%clk 0:01:18.8]} 26. Raf1 {[%clk 0:01:57.7]} 26... Nd7 {[%clk
0:01:02.6]} 27. Rc1 {[%clk 0:01:35.6]} 27... Qb6 {[%clk 0:01:00.7]} 28. Bf5
{[%clk 0:01:31.9]} 28... Rfe8 {[%clk 0:00:42.9]} 29. Qg4 {[%clk 0:01:20.3]}
29... R8e7 {[%clk 0:00:40.7]} 30. Bxe6+ {[%clk 0:01:18.5]} 30... Qxe6 {[%clk
0:00:41.6]} 31. Qxe6+ {[%clk 0:01:18.7]} 31... Rxe6 {[%clk 0:00:42.5]} 32. Rc7
{[%clk 0:01:19.2]} 1-0

[Event "Early-Titled-Tuesday-Blitz-March-19-2024"]
[Site "Chess.com"]
[Date "2024.03.19"]
[Round "6"]
[White "Yeritsyaan"]
[Black "MarijaKuznecova"]
[Result "1-0"]
[WhiteElo "2655"]
[BlackElo "2400"]
[TimeControl "180+1"]
[EndTime "9:05:23 PDT"]
[Termination "Yeritsyaan won on time"]

1. e4 {[%clk 0:02:58.4]} 1... c5 {[%clk 0:02:59.8]} 2. Nc3 {[%clk 0:02:57.7]}
2... d6 {[%clk 0:02:58.6]} 3. f4 {[%clk 0:02:54.6]} 3... Nc6 {[%clk 0:02:58.7]}
4. Nf3 {[%clk 0:02:55.1]} 4... g6 {[%clk 0:02:59.4]} 5. Bb5 {[%clk 0:02:55.7]}
5... Bg7 {[%clk 0:02:59.5]} 6. O-O {[%clk 0:02:55.3]} 6... e6 {[%clk 0:02:59.7]}
7. d3 {[%clk 0:02:55.9]} 7... Ne7 {[%clk 0:03:00.2]} 8. Qe1 {[%clk 0:02:55.7]}
8... O-O {[%clk 0:03:00.3]} 9. Bxc6 {[%clk 0:02:52.9]} 9... bxc6 {[%clk
0:03:00.1]} 10. Bd2 {[%clk 0:02:49.4]} 10... Rb8 {[%clk 0:02:57.8]} 11. Rb1
{[%clk 0:02:49.4]} 11... f5 {[%clk 0:02:53.2]} 12. Kh1 {[%clk 0:02:42.4]} 12...
Qc7 {[%clk 0:02:14.5]} 13. Qh4 {[%clk 0:02:39.9]} 13... d5 {[%clk 0:01:59]} 14.
e5 {[%clk 0:02:30.6]} 14... h6 {[%clk 0:01:40.2]} 15. Qf2 {[%clk 0:02:29.1]}
15... Qb6 {[%clk 0:01:19.2]} 16. Na4 {[%clk 0:02:26.4]} 16... Qa6 {[%clk
0:01:18.4]} 17. b3 {[%clk 0:02:08.6]} 17... c4 {[%clk 0:01:12.6]} 18. Qc5 {[%clk
0:02:05.5]} 18... cxb3 {[%clk 0:00:46.6]} 19. axb3 {[%clk 0:01:58.1]} 19... Re8
{[%clk 0:00:46.7]} 20. Qd6 {[%clk 0:01:46.7]} 20... Rb5 {[%clk 0:00:15.3]} 21.
Nc5 {[%clk 0:01:40.2]} 21... Qa2 {[%clk 0:00:10.2]} 22. Nxe6 {[%clk 0:01:38]}
22... Qxc2 {[%clk 0:00:06.6]} 23. Nc7 {[%clk 0:01:35.2]} 23... Rf8 {[%clk
0:00:02.7]} 24. Nxb5 {[%clk 0:01:33.5]} 1-0

[Event "Early-Titled-Tuesday-Blitz-March-19-2024"]
[Site "Chess.com"]
[Date "2024.03.19"]
[Round "6"]
[White "andrew-blr"]
[Black "martinbitel"]
[Result "1-0"]
[WhiteElo "2605"]
[BlackElo "2407"]
[TimeControl "180+1"]
[EndTime "9:05:26 PDT"]
[Termination "andrew-blr won by resignation"]

1. d4 {[%clk 0:03:00.9]} 1... Nf6 {[%clk 0:02:59.6]} 2. c4 {[%clk 0:03:00.4]}
2... c5 {[%clk 0:02:59.2]} 3. d5 {[%clk 0:02:59.3]} 3... e6 {[%clk 0:02:59.5]}
4. Nc3 {[%clk 0:02:57.1]} 4... exd5 {[%clk 0:02:59.8]} 5. cxd5 {[%clk
0:02:55.3]} 5... d6 {[%clk 0:03:00]} 6. e4 {[%clk 0:02:54.3]} 6... g6 {[%clk
0:02:59.8]} 7. h3 {[%clk 0:02:54.2]} 7... Bg7 {[%clk 0:02:58.2]} 8. Nf3 {[%clk
0:02:55.1]} 8... O-O {[%clk 0:02:57]} 9. Be3 {[%clk 0:02:55.3]} 9... Re8 {[%clk
0:02:48.8]} 10. Bd3 {[%clk 0:02:53.8]} 10... Na6 {[%clk 0:02:22.3]} 11. O-O
{[%clk 0:02:51.4]} 11... Nc7 {[%clk 0:02:21.6]} 12. a4 {[%clk 0:02:49.6]} 12...
b6 {[%clk 0:02:14.8]} 13. Re1 {[%clk 0:02:47.3]} 13... Ba6 {[%clk 0:02:13.8]}
14. Bf4 {[%clk 0:02:30.8]} 14... Bxd3 {[%clk 0:02:07.5]} 15. Qxd3 {[%clk
0:02:28.9]} 15... a6 {[%clk 0:02:03.6]} 16. Nd2 {[%clk 0:02:25.4]} 16... Nh5
{[%clk 0:01:41.3]} 17. Bh2 {[%clk 0:02:23.5]} 17... Be5 {[%clk 0:01:41.5]} 18.
Bxe5 {[%clk 0:02:18]} 18... Rxe5 {[%clk 0:01:41.5]} 19. Nc4 {[%clk 0:02:16.9]}
19... Rg5 {[%clk 0:01:41]} 20. Qf3 {[%clk 0:01:58.7]} 20... Ng7 {[%clk
0:00:31.1]} 21. g4 {[%clk 0:01:32.5]} 21... h5 {[%clk 0:00:25.7]} 22. e5 {[%clk
0:01:32.1]} 22... hxg4 {[%clk 0:00:24.2]} 23. hxg4 {[%clk 0:01:30.8]} 23... dxe5
{[%clk 0:00:14.7]} 24. Ne4 {[%clk 0:01:30.2]} 24... Qxd5 {[%clk 0:00:13.6]} 25.
Nf6+ {[%clk 0:01:28.5]} 1-0

[Event "Early-Titled-Tuesday-Blitz-March-19-2024"]
[Site "Chess.com"]
[Date "2024.03.19"]
[Round "6"]
[White "ChainedDowntohell"]
[Black "ChessFanNM"]
[Result "1-0"]
[WhiteElo "2516"]
[BlackElo "2261"]
[TimeControl "180+1"]
[EndTime "9:05:33 PDT"]
[Termination "ChainedDowntohell won by resignation"]

1. d4 {[%clk 0:02:27.1]} 1... d5 {[%clk 0:02:57]} 2. c4 {[%clk 0:02:27.1]} 2...
e6 {[%clk 0:02:55.8]} 3. Nc3 {[%clk 0:02:26.7]} 3... Nf6 {[%clk 0:02:54.7]} 4.
cxd5 {[%clk 0:02:26.7]} 4... Nxd5 {[%clk 0:02:53.9]} 5. Nf3 {[%clk 0:02:25]}
5... c5 {[%clk 0:02:35.3]} 6. e3 {[%clk 0:02:23.6]} 6... Nc6 {[%clk 0:02:31.5]}
7. Bd3 {[%clk 0:02:23.1]} 7... cxd4 {[%clk 0:02:26.3]} 8. exd4 {[%clk
0:02:23.1]} 8... Be7 {[%clk 0:02:26.2]} 9. O-O {[%clk 0:02:22.3]} 9... O-O
{[%clk 0:02:22.6]} 10. Re1 {[%clk 0:02:21.9]} 10... Bf6 {[%clk 0:02:22.9]} 11.
a3 {[%clk 0:02:16.2]} 11... Nxd4 {[%clk 0:02:10.5]} 12. Nxd4 {[%clk 0:02:12.5]}
12... Bxd4 {[%clk 0:02:09.9]} 13. Bxh7+ {[%clk 0:02:05.5]} 13... Kxh7 {[%clk
0:02:09.7]} 14. Qxd4 {[%clk 0:02:05.2]} 14... Nxc3 {[%clk 0:02:08.7]} 15. Qxc3
{[%clk 0:02:02.8]} 15... Bd7 {[%clk 0:02:04.4]} 16. Be3 {[%clk 0:01:55.9]} 16...
Bc6 {[%clk 0:02:03.1]} 17. Rad1 {[%clk 0:01:53.2]} 17... Bd5 {[%clk 0:01:55.2]}
18. Rd4 {[%clk 0:01:41.1]} 18... Rc8 {[%clk 0:01:32.1]} 19. Qd3+ {[%clk
0:01:38.2]} 19... f5 {[%clk 0:01:17.6]} 20. Bf4 {[%clk 0:01:31.5]} 20... Qb6
{[%clk 0:01:07.7]} 21. Be5 {[%clk 0:01:28.7]} 21... Rf7 {[%clk 0:00:41]} 22.
Qh3+ {[%clk 0:01:13.9]} 22... Kg8 {[%clk 0:00:40.7]} 23. Rh4 {[%clk 0:01:12.3]}
23... Kf8 {[%clk 0:00:14.9]} 24. Rh8+ {[%clk 0:01:11.9]} 24... Ke7 {[%clk
0:00:15.1]} 25. Rxc8 {[%clk 0:01:11.2]} 1-0

[Event "Early-Titled-Tuesday-Blitz-March-19-2024"]
[Site "Chess.com"]
[Date "2024.03.19"]
[Round "6"]
[White "only_strong_moves"]
[Black "Njal28"]
[Result "0-1"]
[WhiteElo "2629"]
[BlackElo "3051"]
[TimeControl "180+1"]
[EndTime "9:05:35 PDT"]
[Termination "Njal28 won on time"]

1. Nc3 {[%clk 0:02:59.9]} 1... Nc6 {[%clk 0:02:58.5]} 2. Nf3 {[%clk 0:02:57]}
2... d5 {[%clk 0:02:56.6]} 3. e4 {[%clk 0:02:51.4]} 3... d4 {[%clk 0:02:54.5]}
4. Ne2 {[%clk 0:02:51.7]} 4... Nf6 {[%clk 0:02:50.3]} 5. Ng3 {[%clk 0:02:47.9]}
5... h5 {[%clk 0:02:50.6]} 6. e5 {[%clk 0:02:41.7]} 6... h4 {[%clk 0:02:46.7]}
7. exf6 {[%clk 0:02:27.2]} 7... hxg3 {[%clk 0:02:46]} 8. fxe7 {[%clk 0:02:02.9]}
8... Qxe7+ {[%clk 0:02:45.3]} 9. Qe2 {[%clk 0:01:59.6]} 9... gxf2+ {[%clk
0:02:44.4]} 10. Kxf2 {[%clk 0:02:00.5]} 10... Be6 {[%clk 0:02:45]} 11. d3 {[%clk
0:01:55.4]} 11... O-O-O {[%clk 0:02:45.4]} 12. Bg5 {[%clk 0:01:53.7]} 12... f6
{[%clk 0:02:45.5]} 13. Bf4 {[%clk 0:01:54.1]} 13... Qd7 {[%clk 0:02:45.2]} 14.
Re1 {[%clk 0:01:27.8]} 14... Bd5 {[%clk 0:02:45.3]} 15. c4 {[%clk 0:01:23.8]}
15... dxc3 {[%clk 0:02:43.5]} 16. bxc3 {[%clk 0:01:24.7]} 16... g5 {[%clk
0:02:43.8]} 17. Bg3 {[%clk 0:01:19]} 17... g4 {[%clk 0:02:42.4]} 18. Nd4 {[%clk
0:01:06.2]} 18... Bc5 {[%clk 0:02:41.9]} 19. Bf4 {[%clk 0:00:42.4]} 19... Nxd4
{[%clk 0:02:38.6]} 20. cxd4 {[%clk 0:00:42]} 20... Bxd4+ {[%clk 0:02:39.5]} 21.
Kg3 {[%clk 0:00:27.9]} 21... f5 {[%clk 0:02:32.7]} 22. Qe7 {[%clk 0:00:23.3]}
22... Bc3 {[%clk 0:02:04]} 23. Qxd7+ {[%clk 0:00:20.3]} 23... Rxd7 {[%clk
0:02:04.4]} 24. Rc1 {[%clk 0:00:21.1]} 24... Bb2 {[%clk 0:01:59.9]} 25. Rc5
{[%clk 0:00:16.8]} 25... Bd4 {[%clk 0:01:58.7]} 26. Rc2 {[%clk 0:00:16.5]} 26...
Bf6 {[%clk 0:01:53.7]} 27. Kf2 {[%clk 0:00:12.8]} 27... Re7 {[%clk 0:01:42.8]}
28. Be2 {[%clk 0:00:07.9]} 28... Bh4+ {[%clk 0:01:43]} 29. Kf1 {[%clk
0:00:07.4]} 29... Rhe8 {[%clk 0:01:42.1]} 30. Rg1 {[%clk 0:00:06.9]} 30... c6
{[%clk 0:01:40.3]} 31. g3 {[%clk 0:00:07.1]} 31... Bf6 {[%clk 0:01:40.6]} 32.
Bd6 {[%clk 0:00:03.3]} 32... Re6 {[%clk 0:01:40.3]} 33. Bf4 {[%clk 0:00:04.2]}
33... Bd4 {[%clk 0:01:40.7]} 0-1

[Event "Early-Titled-Tuesday-Blitz-March-19-2024"]
[Site "Chess.com"]
[Date "2024.03.19"]
[Round "6"]
[White "Viktoker"]
[Black "madmax011"]
[Result "1-0"]
[WhiteElo "2548"]
[BlackElo "2316"]
[TimeControl "180+1"]
[EndTime "9:05:37 PDT"]
[Termination "Viktoker won by resignation"]

1. e4 {[%clk 0:03:00.9]} 1... c5 {[%clk 0:02:59.7]} 2. Nf3 {[%clk 0:03:00.4]}
2... d6 {[%clk 0:03:00.1]} 3. d4 {[%clk 0:03:00.3]} 3... cxd4 {[%clk 0:03:01]}
4. Nxd4 {[%clk 0:03:00.8]} 4... Nf6 {[%clk 0:03:01.5]} 5. Nc3 {[%clk 0:02:58.6]}
5... a6 {[%clk 0:03:01.6]} 6. h4 {[%clk 0:02:52.9]} 6... e5 {[%clk 0:03:00.6]}
7. Nf5 {[%clk 0:02:51.5]} 7... d5 {[%clk 0:03:00]} 8. Bg5 {[%clk 0:02:28.7]}
8... Bxf5 {[%clk 0:02:46.8]} 9. exf5 {[%clk 0:02:26.2]} 9... d4 {[%clk
0:02:45.2]} 10. Ne4 {[%clk 0:02:23.5]} 10... Be7 {[%clk 0:02:44.7]} 11. Bxf6
{[%clk 0:02:22.8]} 11... Bxf6 {[%clk 0:02:44.9]} 12. Qg4 {[%clk 0:02:21.7]}
12... Qa5+ {[%clk 0:02:17.7]} 13. c3 {[%clk 0:02:21.6]} 13... dxc3 {[%clk
0:02:15.4]} 14. bxc3 {[%clk 0:02:22.5]} 14... Nd7 {[%clk 0:02:02.7]} 15. Bc4
{[%clk 0:02:10.8]} 15... O-O {[%clk 0:01:40]} 16. O-O {[%clk 0:01:59.6]} 16...
Rac8 {[%clk 0:01:36.5]} 17. Bb3 {[%clk 0:01:58]} 17... Be7 {[%clk 0:01:24.4]}
18. Rad1 {[%clk 0:01:57.2]} 18... Nf6 {[%clk 0:01:19.5]} 19. Nxf6+ {[%clk
0:01:56.7]} 19... Bxf6 {[%clk 0:01:20.4]} 20. Rd6 {[%clk 0:01:55.7]} 20... Be7
{[%clk 0:00:57.5]} 21. Rd7 {[%clk 0:01:55.3]} 21... Rc7 {[%clk 0:00:54.2]} 22.
Rxe7 {[%clk 0:01:51.5]} 22... Rxe7 {[%clk 0:00:49.1]} 23. f6 {[%clk 0:01:52]}
23... g6 {[%clk 0:00:46.8]} 24. fxe7 {[%clk 0:01:52.3]} 24... Re8 {[%clk
0:00:47.2]} 25. Qd7 {[%clk 0:01:51.8]} 25... Qb5 {[%clk 0:00:44.6]} 26. Qd8
{[%clk 0:01:44.2]} 26... Kg7 {[%clk 0:00:39.4]} 27. Rd1 {[%clk 0:01:41.7]} 27...
a5 {[%clk 0:00:30.4]} 28. Rd5 {[%clk 0:01:38.4]} 28... Qc6 {[%clk 0:00:26.5]}
29. Rxe5 {[%clk 0:01:32.5]} 29... Kf6 {[%clk 0:00:15.4]} 30. Qd4 {[%clk
0:01:30.4]} 30... Kg7 {[%clk 0:00:12.4]} 31. Re6+ {[%clk 0:01:25.2]} 1-0